Cogmind - Beta 16 @@@ ROGUE MODE // 2025.11.15 @ 04:50:23 Player: shapeshifter Result: Self-destructed Performance ------------- Evolutions (2) 1000 Regions Visited (3) 600 Robots Destroyed (13) 65 Value Destroyed (256) 256 Prototype IDs (0) 0 Alien Tech Used (0) 0 Bonus (0) 0 TOTAL SCORE: 1921 Bonus ------- None Cogmind --------- Core Integrity 464/550 Matter 194/300 Energy 250/250 System Corruption 0% Temperature Cool (0) Movement Treading (160) Location -8/Materials Parts ------- > --- POWER (1) -------- Ion Engine > --- PROPULSION (3) --- Light Treads Light Treads Light Treads > --- UTILITY (4) ------ Small Storage Unit Advanced Visual Processing Unit Seismic Detector Recoil Stabilizer > --- WEAPON (3) ------- Medium Laser Heavy Assault Rifle Battle Cannon > --- INVENTORY (8) ---- Ion Engine Makeshift Leg EM Pulse Gun Peak State ------------ > --- POWER ------------ Ion Engine > --- PROPULSION ------- Light Treads Light Treads Light Treads > --- UTILITY ---------- Small Storage Unit Advanced Visual Processing Unit Seismic Detector Recoil Stabilizer > --- WEAPON ----------- Medium Laser Heavy Assault Rifle Battle Cannon > --- INVENTORY -------- Ion Engine Makeshift Leg EM Pulse Gun [Rating: 17] Favorites ----------- Power Ion Engine Engine Ion Engine Propulsion Light Treads Treads Light Treads Utility Small Storage Unit Device Seismic Detector Storage Small Storage Unit Processor Advanced Visual Processing Unit Weapon Medium Laser Energy Gun Medium Laser Ballistic Gun Heavy Assault Rifle Ballistic Cannon Battle Cannon Build | -11 -10 -10 -8 ------- Run | Yrd Mat Sub Mat Slots Evolved 4 | . . . 4 Power . | . . . . Propulsion 1 | . . . 1 Utility 2 | . . . 2 Weapon 1 | . . . 1 Parts Attached 12 | 7 . 1 4 Power 1 | 1 . . . Engine 1 | 1 . . . Core . | . . . . Reactor . | . . . . Propulsion 3 | 2 . . 1 Treads 3 | 2 . . 1 Leg . | . . . . Wheel . | . . . . Hover . | . . . . Flight . | . . . . Utility 4 | 2 . . 2 Device 2 | 1 . . 1 Storage 1 | 1 . . . Processor 1 | . . . 1 Hackware . | . . . . Protection . | . . . . Artifact . | . . . . Weapon 4 | 2 . 1 1 Energy Gun 2 | 2 . . . Energy Cannon . | . . . . Ballistic Gun 1 | . . . 1 Ballistic Cannon 1 | . . 1 . Launcher . | . . . . Special Weapon . | . . . . Impact Weapon . | . . . . Slashing Weapon . | . . . . Piercing Weapon . | . . . . Special Melee Weapon . | . . . . Unidentified Prototypes . | . . . . Parts Lost . | . . . . Power . | . . . . Propulsion . | . . . . Utility . | . . . . Weapon . | . . . . Highest Loss Streak . | . . . . To Critical Strikes . | . . . . Average Backups 2 | 2 2 2 3 Power . | . 1 1 1 Propulsion . | . . . 1 Utility . | . . . . Weapon 1 | 1 1 1 1 Tool/Special . | . . . . Unused Backups 2 | . . . 2 Power 1 | . . . 1 Propulsion . | . . . . Utility . | . . . . Weapon 1 | . . . 1 Tool/Special . | . . . . Average Slot Usage (%) 93 | . 100 100 78 Engine 12 | . 14 14 9 Treads 25 | . 28 28 18 Device 13 | . 14 14 10 Storage 12 | . 14 14 9 Processor 1 | . . . 4 Energy Gun 21 | . 28 27 9 Ballistic Gun 2 | . . . 8 Ballistic Cannon 3 | . . . 9 Peak Build Rating 17 | 7 7 8 17 Average Rating 8 | 5 7 7 12 On Entrance 5 | . 7 7 8 Avg Prop Armor Cover (%) . | . . . . Naked Turns . | . . . . Heaviest Build 20 | 14 14 16 20 Greatest Support 60 | 40 40 40 60 Greatest Overweight (x) . | . . . . Average Overweight (x) . | . . . . Largest Inventory Capacity 8 | 8 8 8 8 Average Capacity 7 | 7 8 8 8 Most Carried 5 | 4 2 3 5 Average Carried 2 | 2 2 2 3 Final Capacity 8 | 8 8 8 8 Final Carried 3 | 2 2 3 3 Class Distribution -------------------- 75% | Mutant 17% | Gunner 7% | Skirmisher Dominant Class ---------------- Mutant | -10/Materials Mutant | -10/Subcaves Gunner | -8/Materials Resources | -11 -10 -10 -8 ----------- Run | Yrd Mat Sub Mat Matter Collected 294 | 270 . . 24 Remotely . | . . . . Salvage Created 363 | 89 . 168 106 Parts 26 | 7 . 13 6 Haulers Intercepted . | . . . . Recyclers Shooed . | . . . . Parts Field Recycled . | . . . . Retrieved Matter . | . . . . Parts Self-Destructed 13 | . . 13 . Prevented . | . . . . Parts Restored . | . . . . Kills | -11 -10 -10 -8 ------- Run | Yrd Mat Sub Mat Combat Hostiles Destroyed 7 | . . 5 2 Guns 7 | . . 5 2 Classes Destroyed 6 | 2 . 3 1 Worker 1 | . . . 1 Tunneler 2 | 2 . . . Recycler 1 | 1 . . . Turret 2 | . . 2 . Swarmer 4 | . . 4 . Sentry 3 | . . 1 2 Best Kill Streak 4 | 2 . 4 1 Combat Bots Only 4 | . . 4 1 Max Kills in Single Turn 1 | 1 . 1 1 Gunslinging . | . . . . Exploded . | . . . . Melee . | . . . . Uniques/NPCs Destroyed . | . . . . Combat | -11 -10 -10 -8 -------- Run | Yrd Mat Sub Mat Hostile Shots Fired 122 | . . 88 34 Missed 51 | . . 42 9 Hits 71 | . . 46 25 Projectile 71 | . . 46 25 Critical Strikes 1 | . . . 1 Damage Taken 703 | . . 344 359 Core 176 | . . 90 86 Absorbed by Shields . | . . . . Core Remaining (%) 82 | 100 . 64 . Volleys Fired 40 | 9 . 21 10 Largest 3 | 2 . 2 3 Hottest 106 | 90 . 90 106 Shots Fired 90 | 18 . 42 30 Gun 80 | 18 . 42 20 Cannon 10 | . . . 10 Launcher . | . . . . Special . | . . . . Kinetic 20 | . . . 20 Thermal 70 | 18 . 42 10 Explosive . | . . . . Electromagnetic . | . . . . Robot Hit Streak 10 | 4 . 10 5 Robot Miss Streak 4 | 4 . 3 3 Penetration Max . | . . . . Secondary Targets 1 | . . 1 . Max Gunslinging Chain 1 | . . 1 . Shots Hit Robots 53 | 9 . 31 13 Core Hits 21 | 4 . 12 5 Critical Kills . | . . . . Critical Parts Destroyed . | . . . . Critical Strikes 4 | . . 4 . Burn 4 | . . 4 . Melee Attacks . | . . . . Impact . | . . . . Slashing . | . . . . Piercing . | . . . . Sneak Attacks . | . . . . Combat Hostiles . | . . . . Follow-up Attacks . | . . . . Damage Inflicted 734 | 106 . 357 271 Guns 635 | 106 . 357 172 Cannons 99 | . . . 99 Explosions . | . . . . Melee . | . . . . Ramming . | . . . . Kinetic 186 | . . . 186 Thermal 548 | 106 . 357 85 Explosive . | . . . . Electromagnetic . | . . . . Impact . | . . . . Slashing . | . . . . Piercing . | . . . . Highest Corruption . | . . . . Average Corruption . | . . . . Corruption Purged . | . . . . Corruption Blocked . | . . . . Overload Shots . | . . . . Overflow Damage . | . . . . Projectiles . | . . . . Explosions . | . . . . Melee . | . . . . Knockbacks . | . . . . Impact . | . . . . Kinetic . | . . . . Secondary . | . . . . Self-Inflicted Damage . | . . . . Shots . | . . . . Rammed . | . . . . Targets Rammed . | . . . . Kicked . | . . . . Crushed . | . . . . Highest Temperature 210 | 210 . 8 190 Average Temperature 71 | 89 . 5 68 Received Heat Transfer 357 | . . 222 135 Siege Activations . | . . . . Martial Activations . | . . . . Shielding Activations . | . . . . Robots Disrupted . | . . . . Combat Hostiles . | . . . . Robots Corrupted . | . . . . Combat Hostiles . | . . . . Parts Fried . | . . . . Impact Corruptions . | . . . . Robots Melted . | . . . . Combat Hostiles . | . . . . Parts Melted 1 | . . 1 . Heat Transferred 1783 | 273 . 1251 259 Parts Sabotaged . | . . . . Parts Stolen . | . . . . Parts Stripped . | . . . . Power Chain Reactions . | . . . . Alert | -11 -10 -10 -8 ------- Run | Yrd Mat Sub Mat Maximum Alert Level . | . . . . Low Security (%) 100 | 100 100 . 100 Level 1 . | . . . . Level 2 . | . . . . Level 3 . | . . . . Level 4 . | . . . . Level 5 . | . . . . High Security . | . . . . Max Security . | . . . . Peak Influence 76 | 10 . . 76 Initial 76 | . . . 76 Average 15 | 1 . . 26 Influence Increases 324 | 15 . 230 79 Destroy 0b10 Robot/C 180 | . . 140 40 Destroy 0b10 Robot/NC 20 | 15 . . 5 Destroy Leader 20 | . . . 20 Successful Hack 12 | . . . 12 Destroy Structure 2 | . . . 2 Lose Combat Pursuer 90 | . . 90 . Influence Decreases 320 | 15 . 82 223 Entered New Map 72 | . . . 72 Time Decay 248 | 15 . 82 151 Squads Dispatched 3 | . 1 . 2 Investigation 1 | . 1 . . Extermination . | . . . . Reinforcement 1 | . . . 1 Assault . | . . . . Garrison 1 | . . . 1 Intercept . | . . . . Searches Triggered . | . . . . Construction Impeded . | . . . . Haulers Reinforced . | . . . . Active Scanning Responses . | . . . . Cargo Convoy Interrupts . | . . . . Stealth | -11 -10 -10 -8 --------- Run | Yrd Mat Sub Mat Distress Signals 1 | . . . 1 Communications Jammed . | . . . . Distress Signals . | . . . . Times Spotted 29 | . . 11 18 Peak Tracking Total 15 | . . 6 15 Tactical Retreats 2 | . . 2 . Traps | -11 -10 -10 -8 ------- Run | Yrd Mat Sub Mat Traps Triggered 1 | . 1 . . Indirectly . | . . . . Trap Hack Attempts . | . . . . Triggered . | . . . . Disarmed . | . . . . Reprogrammed . | . . . . Reused . | . . . . Traps Extracted . | . . . . Installed . | . . . . Triggered . | . . . . Machines | -11 -10 -10 -8 ---------- Run | Yrd Mat Sub Mat Machines Disabled . | . . . . Max in Single Turn . | . . . . Machines Repaired . | . . . . Machines Dismantled . | . . . . Machines Sabotaged . | . . . . Overloaded Fab Kills . | . . . . Hacking | -11 -10 -10 -8 --------- Run | Yrd Mat Sub Mat Machines Accessed 3 | . 1 . 2 Terminals 3 | . 1 . 2 Fabricators . | . . . . Repair Stations . | . . . . Recycling Units . | . . . . Scanalyzers . | . . . . Garrison Access . | . . . . Total Hacks 7 | . 2 . 5 Successful 3 | . 1 . 2 Failed 4 | . 1 . 3 Catastrophic 2 | . . . 2 Database Lockouts . | . . . . Manual 8 | . 3 . 5 Terminals 7 | . 2 . 5 Fabricators . | . . . . Repair Stations . | . . . . Recycling Units . | . . . . Scanalyzers . | . . . . Garrison Access . | . . . . Terminal Hacks 1 | . . . 1 Branch Access Points 1 | . . . 1 Fabricator Hacks . | . . . . Repair Station Hacks . | . . . . Recycling Unit Hacks . | . . . . Scanalyzer . | . . . . Garrison Access Hacks . | . . . . Unauthorized Hacks 2 | . 1 . 1 Terminals 2 | . 1 . 1 Botnet 1 | . . . 1 Skim 1 | . 1 . . Fabricators . | . . . . Repair Stations . | . . . . Recycling Units . | . . . . Scanalyzers . | . . . . Garrison Access . | . . . . Data Cores Recovered . | . . . . Used . | . . . . Hacking Detections 3 | . 1 . 2 Full Trace Events . | . . . . Feedback Events . | . . . . Feedback Blocked . | . . . . Robot Schematics Acquired . | . . . . Robots Built . | . . . . Authchips . | . . . . Time . | . . . . Total Robot Build Rating . | . . . . Part Schematics Acquired . | . . . . Parts Built . | . . . . Authchips . | . . . . Time . | . . . . Total Part Build Rating . | . . . . Part Studies Acquired . | . . . . Parts Repaired . | . . . . Time . | . . . . Parts Recycled . | . . . . Recycled Matter . | . . . . Retrieved Matter . | . . . . Retrieved Components . | . . . . Parts Scanalyzed . | . . . . Part Schematics Acquired . | . . . . Parts Damaged . | . . . . Bothacking | -11 -10 -10 -8 ------------ Run | Yrd Mat Sub Mat Used RIF Installer . | . . . . Robots Hacked . | . . . . Non-combat . | . . . . Combat . | . . . . Robot Hacks Applied . | . . . . Relay Couplers Released . | . . . . Fabnet Peak Effective % . | . . . . Robots Rewired . | . . . . Allies Hacked . | . . . . Hacks Repelled . | . . . . Allies | -11 -10 -10 -8 -------- Run | Yrd Mat Sub Mat Total Allies . | . . . . Largest Group . | . . . . Highest-Rated Group . | . . . . Highest-Rated Ally . | . . . . Total Orders . | . . . . Ally Attacks . | . . . . Total Damage . | . . . . Kills . | . . . . Allies Corrupted . | . . . . Allies Melted . | . . . . Intel | -11 -10 -10 -8 ------- Run | Yrd Mat Sub Mat Active Infowar (turns) 1517 | 25 180 889 423 Optics 203 | . . . 203 Seismic 1517 | 25 180 889 423 Robot Analysis Total . | . . . . Derelict Logs Recovered 1 | . . 1 . Drone Launches . | . . . . Drone Recoveries . | . . . . Exploration | -11 -10 -10 -8 ------------- Run | Yrd Mat Sub Mat Turns Passed 1620 | 128 180 889 423 Spaces Moved 829 | 52 63 479 235 Core 10 | 10 . . . Treads 819 | 42 63 479 235 Legs . | . . . . Wheels . | . . . . Hover . | . . . . Flight . | . . . . Fastest Speed 50 | 50 160 160 160 Average Speed 158 | 138 160 160 160 Slowest Speed 160 | 160 160 160 160 Overloaded Moves . | . . . . Propulsion Burnouts . | . . . . Robots Hopped . | . . . . Potential Cave-ins . | . . . . Cave-ins Triggered . | . . . . Exploration Rate (%) 22 | 6 19 33 30 Regions Visited 3 Branch Regions 1 Pre-discovered Areas 1 | . . 1 . Known Exits Taken . | . . . . Unknown Exits Taken 3 | 1 1 1 . Scrap Searched . | . . . . Spaces Dug . | . . . . Terrain Destroyed 1 | . . . 1 Melee . | . . . . Projectile 1 | . . . 1 AOE . | . . . . Terrain Rammed . | . . . . Walls Destroyed . | . . . . Machines Disabled . | . . . . Actions | -11 -10 -10 -8 --------- Run | Yrd Mat Sub Mat Total 1051 | 90 142 560 259 Wait 157 | 14 80 57 6 Move 826 | 51 62 478 235 Hop . | . . . . Pick Up 15 | 9 . 2 4 Fast Attach . | . . . . Attach 12 | 7 . 1 4 Detach . | . . . . Swap . | . . . . Drop 1 | . . 1 . Fire 40 | 9 . 21 10 Melee . | . . . . Ram . | . . . . Kick . | . . . . Crush . | . . . . Escape Stasis . | . . . . Rewire . | . . . . Trap . | . . . . Miscellaneous . | . . . . Route ------- -11/Scrapyard -10/Materials -10/Subcaves (discovered 3 exits: *Mat / [*Rec] / [Scr]) -8/Materials History --------- Turn | Location | Event 25 | -11/Scrapyard | Discovered new exit (range 15) 129 | -11/Scrapyard | Entered Materials 296 | -10/Materials | Discovered new exit (range 6) 301 | -10/Materials | Build established: Mutant 309 | -10/Materials | Entered Subcaves 310 | -10/Subcaves | Approached by a straggling Scientist 571 | -10/Subcaves | Learned location of Zion (-7) 571 | -10/Subcaves | Met a Zionite searching for "candidates" 612 | -10/Subcaves | Learned Materials trap positions 812 | -10/Subcaves | Shifting Twisted Machinery released Battle Cannon 1056 | -10/Subcaves | Discovered new exit (range 11) 1117 | -10/Subcaves | Shifting Twisted Machinery released Battle Cannon 1133 | -10/Subcaves | Discovered new exit (range 9) 1148 | -10/Subcaves | Shifting Twisted Machinery released Mak. Leg 1198 | -10/Subcaves | Entered Materials 1198 | -8/Materials | Evolved 4 slots: Propulsion x1, Utility x2, Weapon x1 1199 | -8/Materials | Loaded intel: 12 trap records 1557 | -8/Materials | Garrison activated, responded to threat 1621 | -8/Materials | Self-destructed Last Messages --------------- Awaiting botnet instructions. 01379_ K-01 Serf destroyed. 01382_ Acquired 19 matter. 01417_ Acquired Adv. Visual Processing Unit. 01510_ K-01 Serf collects debris. 01518_ K-01 Serf cleans the Terminal. 01530_ Acquired Recoil Stabilizer. 01557_ Connecting with Terminal... >>Access(Branch) No branch access points found. 01557_ Y-45 Defender calls for garrison reinforcements. 01557_ ALERT: Activating Garrison Access M001. 01562_ Y-45 Defender destroyed. 01576_ K-01 Serf cleans the Recycling Unit. 01580_ R-06 Scavenger collects Hvy. Assault Rifle. 01585_ ALERT: Hostiles spotted, dispatching reinforcements to Terminal M009. 01613_ W-25 Informer sends out distress signal. Map ----- +----------------------------------------------------+ | ?????????????????????????????????????????????????? | | ?????????????????????????????????????????????????? | | ?????????????????????????????????????????????????? | | ?????????????????????????????????????????????????? | | ?????????????????????????????????????????????????? | | ?????????????????????????????????????????????????? | | ?????????????????????????????????????????????????? | | ?????????????????????????????????????????????????? | | ?????????????????????????????????????????????????? | | ?????????????????????????????????????????????????? | | ?????????????????????????????????????????????????? | | ?????????????????????????????????????????????????? | | ?????????????????????????????????????????????????? | | ?????????????????????????????????????????????????? | | ?????????????????????????????????????????????????? | | ???????????????????????????????####??????????????? | | ??????????????????????????????? #??????????????? | | ???????????????????????????????" ???????????????? | | ???????????????????????????????" =???????????????? | | ???????????????????????????????" ???????????????? | | ??????????????????????????????? ????????????????? | | ??????????????????????????????? ????????????????? | | ????????########### ###########+######## ##??????? | | ?????? s k k #??????? | | ?????? rss #??????? | | ??????g gw w @ lw u #??????? | | ??????????##+###########+#### ##+#### #??????? | | ?????????????????????? ???# #????????????????? | | ?????????????????????#]!????# #????????????????? | | ?????????????????????#!?????# #????????????????? | | ?????????????????????#??????# #????????????????? | | ????????????????????????????# #????????????????? | | ????????????????????????????# #????????????????? | | ????????????????###########?# #????????????????? | | ????????????????#! #?# #????????????????? | | ????????????????# "Y" #?# #????????????????? | | ????????????????# ! """ #?# #????????????????? | | ????????????????# #?# #????????????????? | | ????????????????######+####?# #????????????????? | | ??????############## #### ################## | | ??? ^^ | | ??? ^^ T | | ??? ^^ | | ????################ #### ###+############## | | ???????????????????## ##??# # #?????????? | | ????????????????????# #???# #""" #?????????? | | ????????????????????# #???# #""" #?????????? | | ????????????????????# #???# #""" #?????????? | | ????????????????????# %#???# # =#?????????? | | ????????????????????# #???# # #?????????? | +----------------------------------------------------+ Best States ------------- Heat Dissipation 31 Energy Generation 10 Energy Capacity 250 Matter Stores 300 Matter Capacity 300 Sight Range 20 Terrain Scan Density 10 Evasion (%) 50 Recoil Reduction 7 Item Schematics ----------------- None Robot Schematics ------------------ None Fabricated ------------ Nothing Repaired ---------- Nothing Studied --------- None Alien Tech Used ----------------- None Achievements -------------- None Challenges ------------ None Game ------ Seed ProjectileDeuteriumPick Manual? 0 Play Time 00:07:26 Cumulative 503.3 hours Start 2025.11.15 @ 04:44:44 End 2025.11.15 @ 04:50:23 Sessions 1 Manual Loads 0 Difficulty Rogue Special Mode None Game No. 679 Rogue 679 Adventurer 0 Explorer 0 Win Type - Total 16 Types 8/0/2/2/1/0/2/1/0/0 Lore% 91 Gallery% 85 Achievement% 67 Wizard Run 0 Options --------- Layout 2 ASCII 0 Keyboard 0 Movement Mouse Keybinds 0 Fullscreen 1 Font 24/Terminus Map View 50x49 Zoom Use 0% Tactical HUD 1 Map Filters NONE Filters NONE Steam 1 RUN: 4439005d-8435-436f-a427-59e6f9bac773